{"text_format":"3","workbook":"xlsx","n_sheets":2,"sheets":["Projekti jälgimine","Häälestamine"],"not_rendered":{"defined_names":6},"read":"whole","date_system":"1900"}

{"sheet":"Projekti jälgimine","index":0,"n_rows":13,"n_cols":15,"rows_kept":13}
[null,"Projekti jälgimine"]
[null,null,"Lipu lisamine, kui protsent on üle/alla: ",{"v":0.25,"d":"25%"}]
[]
[null,"Projekt","Kategooria","Määratud isikule","Hinnanguline\nalgus","Hinnanguline \nlõpp","Hinnanguline töö (tundides)","Hinnanguline kestus (päevades)","Tegelik \nalgus","Tegelik\nlõpp","Lipu ikoon määratust rohkema/vähema tegeliku töö märkimiseks (tundides)","Tegelik töö (tundides)","Lipu ikoon määratust pikema/lühema tegeliku kestuse märkimiseks (päevades)","Tegelik kestus (päevades)","Märkmed"]
[null,"Projekt 1","Kategooria 1","Töötaja 1",{"$f":"TODAY()-65","v":"2016-10-03"},{"$f":"TODAY()-5","v":"2016-12-02"},210,{"$f":"IF(COUNTA('Projekti jälgimine'!$E5,'Projekti jälgimine'!$F5)<>2,\"\",DAYS360('Projekti jälgimine'!$E5,'Projekti jälgimine'!$F5,FALSE))","v":59},{"$f":"TODAY()-65","v":"2016-10-03"},{"$f":"TODAY()","v":"2016-12-07"},{"$f":"IFERROR(IF(ProjektiJälgimine[Tegelik töö (tundides)]=0,\"\",IF(ABS((ProjektiJälgimine[[#This Row],[Tegelik töö (tundides)]]-ProjektiJälgimine[[#This Row],[Hinnanguline töö (tundides)]])/ProjektiJälgimine[[#This Row],[Hinnanguline töö (tundides)]])>LipuProtsent,1,0)),\"\")","v":1},300,{"$f":"IFERROR(IF(ProjektiJälgimine[Tegelik kestus (päevades)]=0,\"\",IF(ABS((ProjektiJälgimine[[#This Row],[Tegelik kestus (päevades)]]-ProjektiJälgimine[[#This Row],[Hinnanguline kestus (päevades)]])/ProjektiJälgimine[[#This Row],[Hinnanguline kestus (päevades)]])>LipuProtsent,1,0)),\"\")","v":0},{"$f":"IF(COUNTA('Projekti jälgimine'!$I5,'Projekti jälgimine'!$J5)<>2,\"\",DAYS360('Projekti jälgimine'!$I5,'Projekti jälgimine'!$J5,FALSE))","v":64}]
[null,"Projekt 2","Kategooria 2","Töötaja 4",{"$f":"TODAY()-41","v":"2016-10-27"},{"$f":"TODAY()-10","v":"2016-11-27"},400,{"$f":"IF(COUNTA('Projekti jälgimine'!$E6,'Projekti jälgimine'!$F6)<>2,\"\",DAYS360('Projekti jälgimine'!$E6,'Projekti jälgimine'!$F6,FALSE))","v":30},{"$f":"TODAY()-41","v":"2016-10-27"},{"$f":"TODAY()-7","v":"2016-11-30"},{"$f":"IFERROR(IF(ProjektiJälgimine[Tegelik töö (tundides)]=0,\"\",IF(ABS((ProjektiJälgimine[[#This Row],[Tegelik töö (tundides)]]-ProjektiJälgimine[[#This Row],[Hinnanguline töö (tundides)]])/ProjektiJälgimine[[#This Row],[Hinnanguline töö (tundides)]])>LipuProtsent,1,0)),\"\")","v":0},390,{"$f":"IFERROR(IF(ProjektiJälgimine[Tegelik kestus (päevades)]=0,\"\",IF(ABS((ProjektiJälgimine[[#This Row],[Tegelik kestus (päevades)]]-ProjektiJälgimine[[#This Row],[Hinnanguline kestus (päevades)]])/ProjektiJälgimine[[#This Row],[Hinnanguline kestus (päevades)]])>LipuProtsent,1,0)),\"\")","v":0},{"$f":"IF(COUNTA('Projekti jälgimine'!$I6,'Projekti jälgimine'!$J6)<>2,\"\",DAYS360('Projekti jälgimine'!$I6,'Projekti jälgimine'!$J6,FALSE))","v":33}]
[null,"Projekt 3","Kategooria 1","Töötaja 2",{"$f":"TODAY()-100","v":"2016-08-29"},{"$f":"TODAY()-40","v":"2016-10-28"},500,{"$f":"IF(COUNTA('Projekti jälgimine'!$E7,'Projekti jälgimine'!$F7)<>2,\"\",DAYS360('Projekti jälgimine'!$E7,'Projekti jälgimine'!$F7,FALSE))","v":59},{"$f":"TODAY()-100","v":"2016-08-29"},{"$f":"TODAY()-27","v":"2016-11-10"},{"$f":"IFERROR(IF(ProjektiJälgimine[Tegelik töö (tundides)]=0,\"\",IF(ABS((ProjektiJälgimine[[#This Row],[Tegelik töö (tundides)]]-ProjektiJälgimine[[#This Row],[Hinnanguline töö (tundides)]])/ProjektiJälgimine[[#This Row],[Hinnanguline töö (tundides)]])>LipuProtsent,1,0)),\"\")","v":0},500,{"$f":"IFERROR(IF(ProjektiJälgimine[Tegelik kestus (päevades)]=0,\"\",IF(ABS((ProjektiJälgimine[[#This Row],[Tegelik kestus (päevades)]]-ProjektiJälgimine[[#This Row],[Hinnanguline kestus (päevades)]])/ProjektiJälgimine[[#This Row],[Hinnanguline kestus (päevades)]])>LipuProtsent,1,0)),\"\")","v":0},{"$f":"IF(COUNTA('Projekti jälgimine'!$I7,'Projekti jälgimine'!$J7)<>2,\"\",DAYS360('Projekti jälgimine'!$I7,'Projekti jälgimine'!$J7,FALSE))","v":71}]
[null,"Projekt 4","Kategooria 2","Töötaja 3",{"$f":"TODAY()-90","v":"2016-09-08"},{"$f":"TODAY()-80","v":"2016-09-18"},250,{"$f":"IF(COUNTA('Projekti jälgimine'!$E8,'Projekti jälgimine'!$F8)<>2,\"\",DAYS360('Projekti jälgimine'!$E8,'Projekti jälgimine'!$F8,FALSE))","v":10},{"$f":"TODAY()-90","v":"2016-09-08"},{"$f":"TODAY()-71","v":"2016-09-27"},{"$f":"IFERROR(IF(ProjektiJälgimine[Tegelik töö (tundides)]=0,\"\",IF(ABS((ProjektiJälgimine[[#This Row],[Tegelik töö (tundides)]]-ProjektiJälgimine[[#This Row],[Hinnanguline töö (tundides)]])/ProjektiJälgimine[[#This Row],[Hinnanguline töö (tundides)]])>LipuProtsent,1,0)),\"\")","v":0},276,{"$f":"IFERROR(IF(ProjektiJälgimine[Tegelik kestus (päevades)]=0,\"\",IF(ABS((ProjektiJälgimine[[#This Row],[Tegelik kestus (päevades)]]-ProjektiJälgimine[[#This Row],[Hinnanguline kestus (päevades)]])/ProjektiJälgimine[[#This Row],[Hinnanguline kestus (päevades)]])>LipuProtsent,1,0)),\"\")","v":1},{"$f":"IF(COUNTA('Projekti jälgimine'!$I8,'Projekti jälgimine'!$J8)<>2,\"\",DAYS360('Projekti jälgimine'!$I8,'Projekti jälgimine'!$J8,FALSE))","v":19}]
[null,"Projekt 5","Kategooria 3","Töötaja 2",{"$f":"TODAY()-90","v":"2016-09-08"},{"$f":"TODAY()-50","v":"2016-10-18"},300,{"$f":"IF(COUNTA('Projekti jälgimine'!$E9,'Projekti jälgimine'!$F9)<>2,\"\",DAYS360('Projekti jälgimine'!$E9,'Projekti jälgimine'!$F9,FALSE))","v":40},{"$f":"TODAY()-90","v":"2016-09-08"},{"$f":"TODAY()-44","v":"2016-10-24"},{"$f":"IFERROR(IF(ProjektiJälgimine[Tegelik töö (tundides)]=0,\"\",IF(ABS((ProjektiJälgimine[[#This Row],[Tegelik töö (tundides)]]-ProjektiJälgimine[[#This Row],[Hinnanguline töö (tundides)]])/ProjektiJälgimine[[#This Row],[Hinnanguline töö (tundides)]])>LipuProtsent,1,0)),\"\")","v":0},310,{"$f":"IFERROR(IF(ProjektiJälgimine[Tegelik kestus (päevades)]=0,\"\",IF(ABS((ProjektiJälgimine[[#This Row],[Tegelik kestus (päevades)]]-ProjektiJälgimine[[#This Row],[Hinnanguline kestus (päevades)]])/ProjektiJälgimine[[#This Row],[Hinnanguline kestus (päevades)]])>LipuProtsent,1,0)),\"\")","v":0},{"$f":"IF(COUNTA('Projekti jälgimine'!$I9,'Projekti jälgimine'!$J9)<>2,\"\",DAYS360('Projekti jälgimine'!$I9,'Projekti jälgimine'!$J9,FALSE))","v":46}]
[null,"Projekt 6","Kategooria 4","Töötaja 4",{"$f":"TODAY()-60","v":"2016-10-08"},{"$f":"TODAY()-50","v":"2016-10-18"},500,{"$f":"IF(COUNTA('Projekti jälgimine'!$E10,'Projekti jälgimine'!$F10)<>2,\"\",DAYS360('Projekti jälgimine'!$E10,'Projekti jälgimine'!$F10,FALSE))","v":10},{"$f":"TODAY()-60","v":"2016-10-08"},{"$f":"TODAY()-45","v":"2016-10-23"},{"$f":"IFERROR(IF(ProjektiJälgimine[Tegelik töö (tundides)]=0,\"\",IF(ABS((ProjektiJälgimine[[#This Row],[Tegelik töö (tundides)]]-ProjektiJälgimine[[#This Row],[Hinnanguline töö (tundides)]])/ProjektiJälgimine[[#This Row],[Hinnanguline töö (tundides)]])>LipuProtsent,1,0)),\"\")","v":0},510,{"$f":"IFERROR(IF(ProjektiJälgimine[Tegelik kestus (päevades)]=0,\"\",IF(ABS((ProjektiJälgimine[[#This Row],[Tegelik kestus (päevades)]]-ProjektiJälgimine[[#This Row],[Hinnanguline kestus (päevades)]])/ProjektiJälgimine[[#This Row],[Hinnanguline kestus (päevades)]])>LipuProtsent,1,0)),\"\")","v":1},{"$f":"IF(COUNTA('Projekti jälgimine'!$I10,'Projekti jälgimine'!$J10)<>2,\"\",DAYS360('Projekti jälgimine'!$I10,'Projekti jälgimine'!$J10,FALSE))","v":15}]
[null,"Projekt 7","Kategooria 5","Töötaja 1",{"$f":"TODAY()-44","v":"2016-10-24"},{"$f":"TODAY()-20","v":"2016-11-17"},750,{"$f":"IF(COUNTA('Projekti jälgimine'!$E11,'Projekti jälgimine'!$F11)<>2,\"\",DAYS360('Projekti jälgimine'!$E11,'Projekti jälgimine'!$F11,FALSE))","v":23},{"$f":"TODAY()-44","v":"2016-10-24"},{"$f":"TODAY()-15","v":"2016-11-22"},{"$f":"IFERROR(IF(ProjektiJälgimine[Tegelik töö (tundides)]=0,\"\",IF(ABS((ProjektiJälgimine[[#This Row],[Tegelik töö (tundides)]]-ProjektiJälgimine[[#This Row],[Hinnanguline töö (tundides)]])/ProjektiJälgimine[[#This Row],[Hinnanguline töö (tundides)]])>LipuProtsent,1,0)),\"\")","v":0},790,{"$f":"IFERROR(IF(ProjektiJälgimine[Tegelik kestus (päevades)]=0,\"\",IF(ABS((ProjektiJälgimine[[#This Row],[Tegelik kestus (päevades)]]-ProjektiJälgimine[[#This Row],[Hinnanguline kestus (päevades)]])/ProjektiJälgimine[[#This Row],[Hinnanguline kestus (päevades)]])>LipuProtsent,1,0)),\"\")","v":0},{"$f":"IF(COUNTA('Projekti jälgimine'!$I11,'Projekti jälgimine'!$J11)<>2,\"\",DAYS360('Projekti jälgimine'!$I11,'Projekti jälgimine'!$J11,FALSE))","v":28}]
[null,"Projekt 8","Kategooria 2","Töötaja 1",{"$f":"TODAY()-39","v":"2016-10-29"},{"$f":"TODAY()","v":"2016-12-07"},450,{"$f":"IF(COUNTA('Projekti jälgimine'!$E12,'Projekti jälgimine'!$F12)<>2,\"\",DAYS360('Projekti jälgimine'!$E12,'Projekti jälgimine'!$F12,FALSE))","v":38},{"$f":"TODAY()-45","v":"2016-10-23"},{"$f":"TODAY()-5","v":"2016-12-02"},{"$f":"IFERROR(IF(ProjektiJälgimine[Tegelik töö (tundides)]=0,\"\",IF(ABS((ProjektiJälgimine[[#This Row],[Tegelik töö (tundides)]]-ProjektiJälgimine[[#This Row],[Hinnanguline töö (tundides)]])/ProjektiJälgimine[[#This Row],[Hinnanguline töö (tundides)]])>LipuProtsent,1,0)),\"\")","v":0},430,{"$f":"IFERROR(IF(ProjektiJälgimine[Tegelik kestus (päevades)]=0,\"\",IF(ABS((ProjektiJälgimine[[#This Row],[Tegelik kestus (päevades)]]-ProjektiJälgimine[[#This Row],[Hinnanguline kestus (päevades)]])/ProjektiJälgimine[[#This Row],[Hinnanguline kestus (päevades)]])>LipuProtsent,1,0)),\"\")","v":0},{"$f":"IF(COUNTA('Projekti jälgimine'!$I12,'Projekti jälgimine'!$J12)<>2,\"\",DAYS360('Projekti jälgimine'!$I12,'Projekti jälgimine'!$J12,FALSE))","v":39}]
[null,"Projekt 9","Kategooria 4","Töötaja 1","2016-02-05","2016-06-09",250,{"$f":"IF(COUNTA('Projekti jälgimine'!$E13,'Projekti jälgimine'!$F13)<>2,\"\",DAYS360('Projekti jälgimine'!$E13,'Projekti jälgimine'!$F13,FALSE))","v":124},"2016-03-05","2016-05-05",{"$f":"IFERROR(IF(ProjektiJälgimine[Tegelik töö (tundides)]=0,\"\",IF(ABS((ProjektiJälgimine[[#This Row],[Tegelik töö (tundides)]]-ProjektiJälgimine[[#This Row],[Hinnanguline töö (tundides)]])/ProjektiJälgimine[[#This Row],[Hinnanguline töö (tundides)]])>LipuProtsent,1,0)),\"\")","v":0},200,{"$f":"IFERROR(IF(ProjektiJälgimine[Tegelik kestus (päevades)]=0,\"\",IF(ABS((ProjektiJälgimine[[#This Row],[Tegelik kestus (päevades)]]-ProjektiJälgimine[[#This Row],[Hinnanguline kestus (päevades)]])/ProjektiJälgimine[[#This Row],[Hinnanguline kestus (päevades)]])>LipuProtsent,1,0)),\"\")","v":1},{"$f":"IF(COUNTA('Projekti jälgimine'!$I13,'Projekti jälgimine'!$J13)<>2,\"\",DAYS360('Projekti jälgimine'!$I13,'Projekti jälgimine'!$J13,FALSE))","v":60}]

{"sheet":"Häälestamine","index":1,"n_rows":10,"n_cols":3,"rows_kept":10}
[null,"Häälestamine"]
[]
[]
[null,"Kategooria nimi","Töötaja nimi"]
[null,"Kategooria 1","Töötaja 1"]
[null,"Kategooria 2","Töötaja 2"]
[null,"Kategooria 3","Töötaja 3"]
[null,"Kategooria 4","Töötaja 4"]
[null,"Kategooria 5","Töötaja 5"]
[null,"Kategooria 6","Töötaja 6"]